[Event "Titled Tuesday Blitz November 07 Early 2023"]
[White "Manukian, Artak"]
[Black "Slovineanu, Viacheslav"]
[WhiteFideId "13301373"]
[BlackFideId "13900510"]
[WhiteElo "2520"]
[BlackElo "2424"]
[Result "1-0"]
[Round "11"]
[TimeControl "180+1"]
[Date "2023.11.07"]
[WhiteClock "0:00:23"]
[BlackClock "0:00:08"]
[Board "80"]

1. e4 {[%clk 0:02:58]}  c6 {[%clk 0:02:59]} 2. d4 {[%clk 0:02:57]}  d5 {[%clk 0:02:59]} 3. e5 {[%clk 0:02:57]}  Bf5 {[%clk 0:02:59]} 4. c4 {[%clk 0:02:58]}  e6 {[%clk 0:02:58]} 5. Nc3 {[%clk 0:02:58]}  Bb4 {[%clk 0:02:50]} 6. Qb3 {[%clk 0:02:56]}  a5 {[%clk 0:02:49]} 7. a3 {[%clk 0:02:56]}  dxc4 {[%clk 0:02:44]} 8. Bxc4 {[%clk 0:02:55]}  Bxc3+ {[%clk 0:02:44]} 9. bxc3 {[%clk 0:02:55]}  b5 {[%clk 0:02:44]} 10. Be2 {[%clk 0:02:55]}  a4 {[%clk 0:02:42]} 11. Qb2 {[%clk 0:02:45]}  Ne7 {[%clk 0:02:38]} 12. Nf3 {[%clk 0:02:41]}  Nd7 {[%clk 0:02:37]} 13. O-O {[%clk 0:02:40]}  Nb6 {[%clk 0:02:36]} 14. Bg5 {[%clk 0:02:38]}  h6 {[%clk 0:02:23]} 15. Bh4 {[%clk 0:02:37]}  O-O {[%clk 0:02:01]} 16. Rfd1 {[%clk 0:02:31]}  Re8 {[%clk 0:01:59]} 17. Bg3 {[%clk 0:02:22]}  Bg4 {[%clk 0:01:51]} 18. h3 {[%clk 0:02:22]}  Bxf3 {[%clk 0:01:51]} 19. Bxf3 {[%clk 0:02:23]}  Nc4 {[%clk 0:01:48]} 20. Qe2 {[%clk 0:02:19]}  Nd5 {[%clk 0:01:47]} 21. Qd3 {[%clk 0:02:04]}  Nb2 {[%clk 0:01:44]} 22. Qc2 {[%clk 0:02:02]}  Nxd1 {[%clk 0:01:44]} 23. Rxd1 {[%clk 0:02:03]}  Qe7 {[%clk 0:01:41]} 24. Qb2 {[%clk 0:02:02]}  Rec8 {[%clk 0:01:36]} 25. Be2 {[%clk 0:01:59]}  Nb6 {[%clk 0:01:35]} 26. Ra1 {[%clk 0:01:54]}  Rab8 {[%clk 0:01:30]} 27. Bd3 {[%clk 0:01:44]}  Nc4 {[%clk 0:01:29]} 28. Qc1 {[%clk 0:01:45]}  c5 {[%clk 0:01:25]} 29. Qf4 {[%clk 0:01:27]}  cxd4 {[%clk 0:01:10]} 30. cxd4 {[%clk 0:01:25]}  Nxa3 {[%clk 0:00:41]} 31. Qe4 {[%clk 0:01:24]}  g6 {[%clk 0:00:41]} 32. Bh4 {[%clk 0:01:23]}  Qf8 {[%clk 0:00:41]} 33. Bf6 {[%clk 0:01:16]}  Rc3 {[%clk 0:00:38]} 34. h4 {[%clk 0:01:15]}  h5 {[%clk 0:00:32]} 35. d5 {[%clk 0:01:04]}  exd5 {[%clk 0:00:28]} 36. Qxd5 {[%clk 0:01:04]}  b4 {[%clk 0:00:20]} 37. Bxg6 {[%clk 0:00:51]}  Rbc8 {[%clk 0:00:16]} 38. e6 {[%clk 0:00:51]}  fxg6 {[%clk 0:00:14]} 39. Bxc3 {[%clk 0:00:47]}  bxc3 {[%clk 0:00:12]} 40. Rxa3 {[%clk 0:00:41]}  c2 {[%clk 0:00:12]} 41. Rc3 {[%clk 0:00:42]}  Rxc3 {[%clk 0:00:10]} 42. e7+ {[%clk 0:00:41]}  Kh7 {[%clk 0:00:10]} 43. exf8=Q {[%clk 0:00:24]}  c1=Q+ {[%clk 0:00:10]} 44. Kh2 {[%clk 0:00:24]}  Rc7 {[%clk 0:00:08]} 45. Qdg8# {[%clk 0:00:23]} 1-0


[Site "https://www.chess.com"]

[Event "Titled Tuesday Blitz November 07 Early 2023"]
[White "Tikhonov, Viacheslav"]
[Black "Polaczek, Richard"]
[WhiteFideId "44196407"]
[BlackFideId "200026"]
[WhiteElo "2541"]
[BlackElo "2419"]
[Result "0-1"]
[Round "11"]
[TimeControl "180+1"]
[Date "2023.11.07"]
[WhiteClock "0:02:08"]
[BlackClock "0:00:24"]
[Board "89"]

1. e4 {[%clk 0:03:00]}  Nf6 {[%clk 0:02:59]} 2. Nc3 {[%clk 0:02:59]}  d5 {[%clk 0:02:59]} 3. exd5 {[%clk 0:03:00]}  Nxd5 {[%clk 0:02:58]} 4. Bc4 {[%clk 0:03:01]}  Nb6 {[%clk 0:02:58]} 5. Bb3 {[%clk 0:03:01]}  Nc6 {[%clk 0:02:58]} 6. Nf3 {[%clk 0:03:00]}  g6 {[%clk 0:02:57]} 7. O-O {[%clk 0:03:00]}  Bg7 {[%clk 0:02:57]} 8. d3 {[%clk 0:02:59]}  O-O {[%clk 0:02:57]} 9. h3 {[%clk 0:02:59]}  Na5 {[%clk 0:02:55]} 10. Re1 {[%clk 0:02:59]}  h6 {[%clk 0:02:51]} 11. Bf4 {[%clk 0:02:58]}  Nxb3 {[%clk 0:02:39]} 12. axb3 {[%clk 0:02:58]}  c6 {[%clk 0:02:37]} 13. Be5 {[%clk 0:02:57]}  f6 {[%clk 0:02:20]} 14. Bg3 {[%clk 0:02:57]}  e5 {[%clk 0:02:15]} 15. Nd2 {[%clk 0:02:57]}  Nd5 {[%clk 0:02:11]} 16. Qf3 {[%clk 0:02:56]}  Nb4 {[%clk 0:01:58]} 17. Rac1 {[%clk 0:02:56]}  Nd5 {[%clk 0:01:21]} 18. Qe4 {[%clk 0:02:55]}  f5 {[%clk 0:01:18]} 19. Qc4 {[%clk 0:02:55]}  Re8 {[%clk 0:01:14]} 20. f4 {[%clk 0:02:46]}  Be6 {[%clk 0:00:44]} 21. Qa4 {[%clk 0:02:24]}  exf4 {[%clk 0:00:40]} 22. Nxd5 {[%clk 0:02:17]}  fxg3 {[%clk 0:00:32]} 23. Nf4 {[%clk 0:02:17]}  Bf7 {[%clk 0:00:30]} 24. Qb4 {[%clk 0:02:16]}  Bxb2 {[%clk 0:00:28]} 25. Rb1 {[%clk 0:02:16]}  Qd4+ {[%clk 0:00:26]} 26. Qxd4 {[%clk 0:02:15]}  Bxd4+ {[%clk 0:00:25]} 27. Kf1 {[%clk 0:02:08]}  Be3 {[%clk 0:00:24]} 0-1


[Site "https://www.chess.com"]

[Event "Titled Tuesday Blitz November 07 Early 2023"]
[White "TheAlienParty"]
[Black "Baches Garcia, Guillermo"]
[BlackFideId "2209764"]
[WhiteElo "2290"]
[BlackElo "2485"]
[Result "1-0"]
[Round "11"]
[TimeControl "180+1"]
[Date "2023.11.07"]
[WhiteClock "0:01:37"]
[BlackClock "0:00:00"]
[Board "93"]

1. c4 {[%clk 0:02:59]}  e6 {[%clk 0:02:59]} 2. g3 {[%clk 0:02:57]}  d5 {[%clk 0:03:00]} 3. Nf3 {[%clk 0:02:57]}  Nf6 {[%clk 0:03:00]} 4. Bg2 {[%clk 0:02:56]}  Bd6 {[%clk 0:02:58]} 5. b3 {[%clk 0:02:54]}  dxc4 {[%clk 0:02:56]} 6. bxc4 {[%clk 0:02:53]}  e5 {[%clk 0:02:56]} 7. Bb2 {[%clk 0:02:52]}  e4 {[%clk 0:02:42]} 8. Nd4 {[%clk 0:02:50]}  O-O {[%clk 0:02:39]} 9. Qc2 {[%clk 0:02:48]}  Re8 {[%clk 0:02:37]} 10. O-O {[%clk 0:02:36]}  Nbd7 {[%clk 0:02:32]} 11. Nc3 {[%clk 0:02:34]}  Nc5 {[%clk 0:02:31]} 12. Nb3 {[%clk 0:02:28]}  Bf5 {[%clk 0:02:22]} 13. Nxc5 {[%clk 0:02:24]}  Bxc5 {[%clk 0:02:23]} 14. e3 {[%clk 0:02:18]}  h5 {[%clk 0:02:06]} 15. h3 {[%clk 0:02:12]}  Qd7 {[%clk 0:02:03]} 16. Kh2 {[%clk 0:02:11]}  Rad8 {[%clk 0:01:58]} 17. Rfd1 {[%clk 0:02:10]}  Bd6 {[%clk 0:01:46]} 18. Nb5 {[%clk 0:02:06]}  Be5 {[%clk 0:01:41]} 19. Bxe5 {[%clk 0:02:05]}  Rxe5 {[%clk 0:01:42]} 20. Nd4 {[%clk 0:02:05]}  h4 {[%clk 0:01:36]} 21. Nxf5 {[%clk 0:02:02]}  Qxf5 {[%clk 0:01:33]} 22. Rf1 {[%clk 0:01:59]}  Rd3 {[%clk 0:01:22]} 23. Rab1 {[%clk 0:01:58]}  b6 {[%clk 0:01:18]} 24. Rb3 {[%clk 0:01:57]}  Qd7 {[%clk 0:01:12]} 25. Rxd3 {[%clk 0:01:56]}  exd3 {[%clk 0:01:13]} 26. Qc3 {[%clk 0:01:54]}  hxg3+ {[%clk 0:01:04]} 27. fxg3 {[%clk 0:01:53]}  Rh5 {[%clk 0:01:03]} 28. Rf4 {[%clk 0:01:47]}  c5 {[%clk 0:00:55]} 29. Kg1 {[%clk 0:01:43]}  Rxh3 {[%clk 0:00:49]} 30. Bxh3 {[%clk 0:01:41]}  Qxh3 {[%clk 0:00:50]} 31. Qxd3 {[%clk 0:01:41]}  Qxg3+ {[%clk 0:00:45]} 32. Kf1 {[%clk 0:01:40]}  Ng4 {[%clk 0:00:00]} 33. Qd5 {[%clk 0:01:37]} 1-0


[Site "https://www.chess.com"]

[Event "Titled Tuesday Blitz November 07 Early 2023"]
[White "KorolDimitriy75"]
[Black "BardArtem"]
[WhiteElo "2341"]
[BlackElo "2755"]
[Result "0-1"]
[Round "11"]
[TimeControl "180+1"]
[Date "2023.11.07"]
[WhiteClock "0:00:00"]
[BlackClock "0:01:40"]
[Board "97"]

1. d4 {[%clk 0:03:00]}  d5 {[%clk 0:03:00]} 2. c4 {[%clk 0:03:01]}  e6 {[%clk 0:03:00]} 3. Nc3 {[%clk 0:03:01]}  Nf6 {[%clk 0:03:00]} 4. Bg5 {[%clk 0:03:01]}  dxc4 {[%clk 0:02:59]} 5. e4 {[%clk 0:03:00]}  c5 {[%clk 0:02:59]} 6. Nf3 {[%clk 0:02:59]}  cxd4 {[%clk 0:02:53]} 7. Qxd4 {[%clk 0:02:59]}  Qxd4 {[%clk 0:02:53]} 8. Nxd4 {[%clk 0:03:00]}  a6 {[%clk 0:02:54]} 9. Bxc4 {[%clk 0:02:53]}  b5 {[%clk 0:02:54]} 10. Bd3 {[%clk 0:01:50]}  Bb7 {[%clk 0:02:54]} 11. f3 {[%clk 0:01:49]}  Nbd7 {[%clk 0:02:54]} 12. Ke2 {[%clk 0:01:44]}  Rd8 {[%clk 0:02:51]} 13. Rhd1 {[%clk 0:01:39]}  h6 {[%clk 0:02:47]} 14. Be3 {[%clk 0:01:34]}  Bc5 {[%clk 0:02:43]} 15. Nb3 {[%clk 0:01:18]}  Bxe3 {[%clk 0:02:41]} 16. Kxe3 {[%clk 0:01:19]}  Ke7 {[%clk 0:02:42]} 17. a3 {[%clk 0:01:14]}  Rc8 {[%clk 0:02:39]} 18. Rac1 {[%clk 0:01:13]}  Rhd8 {[%clk 0:02:38]} 19. Be2 {[%clk 0:00:57]}  g5 {[%clk 0:02:32]} 20. g3 {[%clk 0:00:53]}  Rc7 {[%clk 0:02:14]} 21. Na5 {[%clk 0:00:18]}  Ba8 {[%clk 0:02:06]} 22. Na2 {[%clk 0:00:14]}  Rdc8 {[%clk 0:02:05]} 23. Rxc7 {[%clk 0:00:12]}  Rxc7 {[%clk 0:02:06]} 24. Nb4 {[%clk 0:00:11]}  Nc5 {[%clk 0:02:01]} 25. Rc1 {[%clk 0:00:09]}  Nfd7 {[%clk 0:01:56]} 26. Nb3 {[%clk 0:00:05]}  Bb7 {[%clk 0:01:45]} 27. Na5 {[%clk 0:00:04]}  Ba8 {[%clk 0:01:45]} 28. Nb3 {[%clk 0:00:04]}  Kd8 {[%clk 0:01:46]} 29. Nd4 {[%clk 0:00:02]}  Bb7 {[%clk 0:01:40]} 30. Nb3 {[%clk 0:00:00]}  Nxb3 {[%clk 0:01:40]} 0-1


[Site "https://www.chess.com"]

[Event "Titled Tuesday Blitz November 07 Early 2023"]
[White "Pakleza, Zbigniew"]
[Black "MIss_MIaMI"]
[WhiteFideId "1119290"]
[WhiteElo "2713"]
[BlackElo "2336"]
[Result "1-0"]
[Round "11"]
[TimeControl "180+1"]
[Date "2023.11.07"]
[WhiteClock "0:02:37"]
[BlackClock "0:00:41"]
[Board "98"]

1. g4 {[%clk 0:03:00]}  d5 {[%clk 0:02:51]} 2. Bg2 {[%clk 0:03:00]}  c6 {[%clk 0:02:52]} 3. h3 {[%clk 0:02:59]}  e5 {[%clk 0:02:52]} 4. c4 {[%clk 0:02:58]}  d4 {[%clk 0:02:30]} 5. d3 {[%clk 0:02:53]}  Be6 {[%clk 0:02:20]} 6. e3 {[%clk 0:02:53]}  Qc7 {[%clk 0:02:20]} 7. Ne2 {[%clk 0:02:53]}  c5 {[%clk 0:02:15]} 8. exd4 {[%clk 0:02:53]}  exd4 {[%clk 0:02:16]} 9. Bf4 {[%clk 0:02:50]}  Qb6 {[%clk 0:02:15]} 10. Nd2 {[%clk 0:02:43]}  Nc6 {[%clk 0:02:12]} 11. O-O {[%clk 0:02:40]}  h5 {[%clk 0:02:01]} 12. g5 {[%clk 0:02:40]}  Nge7 {[%clk 0:02:00]} 13. a3 {[%clk 0:02:39]}  Ng6 {[%clk 0:02:00]} 14. Bh2 {[%clk 0:02:39]}  Nh4 {[%clk 0:01:52]} 15. Be4 {[%clk 0:02:39]}  Bxh3 {[%clk 0:01:49]} 16. Nf4 {[%clk 0:02:40]}  Bxf1 {[%clk 0:01:46]} 17. Nd5 {[%clk 0:02:40]}  Qd8 {[%clk 0:01:35]} 18. Nc7+ {[%clk 0:02:40]}  Ke7 {[%clk 0:01:35]} 19. Qxf1 {[%clk 0:02:40]}  Rc8 {[%clk 0:01:31]} 20. Re1 {[%clk 0:02:39]}  Kd7 {[%clk 0:00:50]} 21. Qh3+ {[%clk 0:02:38]}  f5 {[%clk 0:00:47]} 22. gxf6+ {[%clk 0:02:37]}  Nf5 {[%clk 0:00:41]} 23. Bxf5# {[%clk 0:02:37]} 1-0


[Site "https://www.chess.com"]

[Event "Titled Tuesday Blitz November 07 Early 2023"]
[White "Khater, Sherif"]
[Black "Petrova, Irina"]
[WhiteFideId "2034280"]
[BlackFideId "14124122"]
[WhiteElo "2480"]
[BlackElo "2327"]
[Result "1/2-1/2"]
[Round "11"]
[TimeControl "180+1"]
[Date "2023.11.07"]
[WhiteClock "0:00:30"]
[BlackClock "0:01:34"]
[Board "100"]

1. d4 {[%clk 0:03:00]}  d6 {[%clk 0:03:00]} 2. Nf3 {[%clk 0:03:01]}  g6 {[%clk 0:03:00]} 3. g3 {[%clk 0:03:01]}  Bg7 {[%clk 0:03:01]} 4. Bg2 {[%clk 0:03:02]}  Nf6 {[%clk 0:03:01]} 5. O-O {[%clk 0:03:03]}  O-O {[%clk 0:03:01]} 6. Nc3 {[%clk 0:03:04]}  Nc6 {[%clk 0:03:01]} 7. e4 {[%clk 0:03:04]}  e5 {[%clk 0:03:00]} 8. dxe5 {[%clk 0:03:05]}  Nxe5 {[%clk 0:03:00]} 9. Nxe5 {[%clk 0:03:05]}  dxe5 {[%clk 0:03:01]} 10. Qxd8 {[%clk 0:03:06]}  Rxd8 {[%clk 0:03:01]} 11. Bg5 {[%clk 0:03:06]}  Be6 {[%clk 0:03:01]} 12. f4 {[%clk 0:03:00]}  h6 {[%clk 0:03:01]} 13. fxe5 {[%clk 0:03:00]}  hxg5 {[%clk 0:03:00]} 14. exf6 {[%clk 0:03:00]}  Bf8 {[%clk 0:03:00]} 15. Rfd1 {[%clk 0:02:52]}  Bc5+ {[%clk 0:02:59]} 16. Kh1 {[%clk 0:02:51]}  Bd4 {[%clk 0:03:00]} 17. Nd5 {[%clk 0:02:40]}  Bxb2 {[%clk 0:02:57]} 18. Rab1 {[%clk 0:02:40]}  Be5 {[%clk 0:02:57]} 19. Rxb7 {[%clk 0:02:37]}  Bxd5 {[%clk 0:02:54]} 20. Rxd5 {[%clk 0:02:32]}  Bxf6 {[%clk 0:02:32]} 21. Rxc7 {[%clk 0:02:09]}  Rab8 {[%clk 0:02:32]} 22. Bf3 {[%clk 0:01:37]}  Rdc8 {[%clk 0:01:57]} 23. Rxc8+ {[%clk 0:01:28]}  Rxc8 {[%clk 0:01:58]} 24. e5 {[%clk 0:01:28]}  Be7 {[%clk 0:01:57]} 25. Be4 {[%clk 0:01:13]}  Rd8 {[%clk 0:01:43]} 26. c4 {[%clk 0:00:51]}  Rxd5 {[%clk 0:01:42]} 27. cxd5 {[%clk 0:00:51]}  Bd8 {[%clk 0:01:38]} 28. Kg2 {[%clk 0:00:45]}  Bc7 {[%clk 0:01:37]} 29. e6 {[%clk 0:00:45]}  fxe6 {[%clk 0:01:36]} 30. dxe6 {[%clk 0:00:46]}  Kg7 {[%clk 0:01:36]} 31. Bd5 {[%clk 0:00:40]}  Kf6 {[%clk 0:01:36]} 32. h3 {[%clk 0:00:40]}  g4 {[%clk 0:01:34]} 33. hxg4 {[%clk 0:00:39]}  g5 {[%clk 0:01:34]} 34. Kf3 {[%clk 0:00:37]}  Bd6 {[%clk 0:01:34]} 35. a4 {[%clk 0:00:37]}  Bc7 {[%clk 0:01:34]} 36. Bc4 {[%clk 0:00:34]}  a5 {[%clk 0:01:33]} 37. Ke4 {[%clk 0:00:33]}  Bxg3 {[%clk 0:01:33]} 38. Kd5 {[%clk 0:00:34]}  Ke7 {[%clk 0:01:32]} 39. Kc6 {[%clk 0:00:31]}  Be1 {[%clk 0:01:32]} 40. Kb6 {[%clk 0:00:30]}  Bd2 {[%clk 0:01:32]} 41. Kc6 {[%clk 0:00:30]}  Bb4 {[%clk 0:01:32]} 42. Kd5 {[%clk 0:00:30]}  Bd2 {[%clk 0:01:32]} 43. Ke5 {[%clk 0:00:30]}  Bf4+ {[%clk 0:01:32]} 44. Kf5 {[%clk 0:00:30]}  Bd2 {[%clk 0:01:32]} 45. Bd5 {[%clk 0:00:31]}  Bf4 {[%clk 0:01:32]} 46. Ba2 {[%clk 0:00:32]}  Bd2 {[%clk 0:01:32]} 47. Ke5 {[%clk 0:00:31]}  Bf4+ {[%clk 0:01:33]} 48. Kd5 {[%clk 0:00:32]}  Bd2 {[%clk 0:01:33]} 49. Kc5 {[%clk 0:00:32]}  Bb4+ {[%clk 0:01:33]} 50. Kb5 {[%clk 0:00:32]}  Bd2 {[%clk 0:01:34]} 51. Bc4 {[%clk 0:00:32]}  Bb4 {[%clk 0:01:34]} 52. Kb6 {[%clk 0:00:32]}  Bd2 {[%clk 0:01:35]} 53. Ka7 {[%clk 0:00:32]}  Bb4 {[%clk 0:01:35]} 54. Kb7 {[%clk 0:00:32]}  Bd2 {[%clk 0:01:36]} 55. Kc6 {[%clk 0:00:32]}  Bb4 {[%clk 0:01:36]} 56. Kd5 {[%clk 0:00:32]}  Bd2 {[%clk 0:01:36]} 57. Ke4 {[%clk 0:00:33]}  Bf4 {[%clk 0:01:35]} 58. Bb3 {[%clk 0:00:33]}  Bd2 {[%clk 0:01:35]} 59. Ba2 {[%clk 0:00:33]}  Bf4 {[%clk 0:01:35]} 60. Bc4 {[%clk 0:00:33]}  Bd2 {[%clk 0:01:35]} 61. Bd5 {[%clk 0:00:33]}  Bf4 {[%clk 0:01:35]} 62. Kd3 {[%clk 0:00:34]}  Bd6 {[%clk 0:01:34]} 63. Kc4 {[%clk 0:00:30]}  Bb4 {[%clk 0:01:34]} 1/2-1/2


[Site "https://www.chess.com"]

[Event "Titled Tuesday Blitz November 07 Early 2023"]
[White "Novikova, Galina"]
[Black "Ovezdurdyyeva, Jemal"]
[WhiteFideId "4157095"]
[BlackFideId "14001888"]
[WhiteElo "2415"]
[BlackElo "2357"]
[Result "0-1"]
[Round "11"]
[TimeControl "180+1"]
[Date "2023.11.07"]
[WhiteClock "0:00:00"]
[BlackClock "0:00:07"]
[Board "103"]

1. e4 {[%clk 0:03:00]}  d6 {[%clk 0:02:59]} 2. d4 {[%clk 0:03:00]}  Nf6 {[%clk 0:03:00]} 3. Nc3 {[%clk 0:03:00]}  g6 {[%clk 0:03:00]} 4. f3 {[%clk 0:03:01]}  c6 {[%clk 0:03:01]} 5. Be3 {[%clk 0:03:01]}  Bg7 {[%clk 0:03:01]} 6. Qd2 {[%clk 0:03:01]}  h5 {[%clk 0:03:01]} 7. O-O-O {[%clk 0:03:02]}  b5 {[%clk 0:03:01]} 8. Kb1 {[%clk 0:03:01]}  b4 {[%clk 0:03:02]} 9. Nce2 {[%clk 0:03:01]}  Qa5 {[%clk 0:03:01]} 10. Nc1 {[%clk 0:03:01]}  Be6 {[%clk 0:02:58]} 11. h4 {[%clk 0:02:57]}  Nbd7 {[%clk 0:02:56]} 12. Nh3 {[%clk 0:02:56]}  Nb6 {[%clk 0:02:55]} 13. Ng5 {[%clk 0:02:57]}  Bc4 {[%clk 0:02:54]} 14. Nb3 {[%clk 0:02:54]}  Qb5 {[%clk 0:02:51]} 15. Qf2 {[%clk 0:02:21]}  a5 {[%clk 0:02:46]} 16. Bc1 {[%clk 0:02:01]}  a4 {[%clk 0:02:40]} 17. Nd2 {[%clk 0:02:00]}  Bxf1 {[%clk 0:02:41]} 18. Rhxf1 {[%clk 0:01:59]}  O-O {[%clk 0:02:30]} 19. f4 {[%clk 0:01:43]}  Ng4 {[%clk 0:02:23]} 20. Qg1 {[%clk 0:01:43]}  c5 {[%clk 0:02:22]} 21. dxc5 {[%clk 0:01:24]}  dxc5 {[%clk 0:02:15]} 22. e5 {[%clk 0:01:24]}  c4 {[%clk 0:02:08]} 23. Nde4 {[%clk 0:01:23]}  b3 {[%clk 0:02:05]} 24. cxb3 {[%clk 0:01:17]}  axb3 {[%clk 0:02:03]} 25. a3 {[%clk 0:01:17]}  Na4 {[%clk 0:01:58]} 26. Qd4 {[%clk 0:01:01]}  Rfc8 {[%clk 0:01:20]} 27. Nc3 {[%clk 0:01:01]}  Nxc3+ {[%clk 0:01:21]} 28. Qxc3 {[%clk 0:01:02]}  Qc6 {[%clk 0:01:20]} 29. Nf3 {[%clk 0:00:36]}  f6 {[%clk 0:01:17]} 30. Qd4 {[%clk 0:00:20]}  Kh7 {[%clk 0:00:56]} 31. Qd5 {[%clk 0:00:13]}  Qb6 {[%clk 0:00:41]} 32. f5 {[%clk 0:00:12]}  c3 {[%clk 0:00:34]} 33. fxg6+ {[%clk 0:00:12]}  Kh8 {[%clk 0:00:27]} 34. exf6 {[%clk 0:00:07]}  Nxf6 {[%clk 0:00:21]} 35. Qd3 {[%clk 0:00:01]}  c2+ {[%clk 0:00:20]} 36. Ka1 {[%clk 0:00:02]}  cxd1=Q {[%clk 0:00:21]} 37. Rxd1 {[%clk 0:00:03]}  Rd8 {[%clk 0:00:21]} 38. Qf1 {[%clk 0:00:03]}  Rxd1 {[%clk 0:00:20]} 39. Qxd1 {[%clk 0:00:04]}  Rd8 {[%clk 0:00:21]} 40. Qe1 {[%clk 0:00:02]}  Qc5 {[%clk 0:00:16]} 41. Ng5 {[%clk 0:00:01]}  Kg8 {[%clk 0:00:12]} 42. Nf7 {[%clk 0:00:02]}  Rc8 {[%clk 0:00:12]} 43. Bg5 {[%clk 0:00:01]}  Nd5 {[%clk 0:00:09]} 44. Ne5 {[%clk 0:00:00]}  Nb4 {[%clk 0:00:07]} 0-1


[Site "https://www.chess.com"]

[Event "Titled Tuesday Blitz November 07 Early 2023"]
[White "Osiecki, Stanislaw"]
[Black "Schut, Han"]
[WhiteFideId "1102990"]
[BlackFideId "1005561"]
[WhiteElo "2133"]
[BlackElo "2304"]
[Result "0-1"]
[Round "11"]
[TimeControl "180+1"]
[Date "2023.11.07"]
[WhiteClock "0:00:00"]
[BlackClock "0:00:13"]
[Board "111"]

1. e4 {[%clk 0:02:49]}  c5 {[%clk 0:02:59]} 2. c3 {[%clk 0:02:48]}  g6 {[%clk 0:02:58]} 3. d4 {[%clk 0:02:47]}  cxd4 {[%clk 0:02:59]} 4. cxd4 {[%clk 0:02:44]}  d5 {[%clk 0:03:00]} 5. e5 {[%clk 0:02:44]}  Nc6 {[%clk 0:03:00]} 6. h3 {[%clk 0:02:43]}  Nh6 {[%clk 0:02:57]} 7. Nf3 {[%clk 0:02:42]}  Bg7 {[%clk 0:02:54]} 8. Bd3 {[%clk 0:02:39]}  Nf5 {[%clk 0:02:50]} 9. Be3 {[%clk 0:02:33]}  Qb6 {[%clk 0:02:45]} 10. Qd2 {[%clk 0:02:29]}  O-O {[%clk 0:02:40]} 11. Bxf5 {[%clk 0:02:26]}  Bxf5 {[%clk 0:02:40]} 12. O-O {[%clk 0:02:26]}  Be4 {[%clk 0:02:40]} 13. Ng5 {[%clk 0:02:14]}  Rad8 {[%clk 0:02:26]} 14. Nxe4 {[%clk 0:02:08]}  dxe4 {[%clk 0:02:26]} 15. d5 {[%clk 0:02:07]}  Qb4 {[%clk 0:02:04]} 16. Nc3 {[%clk 0:01:36]}  Nxe5 {[%clk 0:01:58]} 17. a3 {[%clk 0:01:31]}  Qb3 {[%clk 0:01:51]} 18. Bc5 {[%clk 0:01:26]}  Rfe8 {[%clk 0:01:36]} 19. Bxa7 {[%clk 0:01:18]}  Nc4 {[%clk 0:01:31]} 20. Qf4 {[%clk 0:01:14]}  f5 {[%clk 0:01:10]} 21. Rfb1 {[%clk 0:00:55]}  b5 {[%clk 0:00:54]} 22. Bc5 {[%clk 0:00:48]}  Bxc3 {[%clk 0:00:44]} 23. bxc3 {[%clk 0:00:47]}  Qxc3 {[%clk 0:00:45]} 24. Bb4 {[%clk 0:00:19]}  Qe5 {[%clk 0:00:37]} 25. Qh6 {[%clk 0:00:18]}  e3 {[%clk 0:00:34]} 26. f4 {[%clk 0:00:15]}  Qd4 {[%clk 0:00:28]} 27. Rc1 {[%clk 0:00:14]}  e2+ {[%clk 0:00:28]} 28. Kh1 {[%clk 0:00:14]}  Qg7 {[%clk 0:00:17]} 29. Qh4 {[%clk 0:00:13]}  Rxd5 {[%clk 0:00:15]} 30. Qe1 {[%clk 0:00:12]}  Qd4 {[%clk 0:00:11]} 31. Qxe2 {[%clk 0:00:10]}  Qxf4 {[%clk 0:00:11]} 32. Rf1 {[%clk 0:00:09]}  Qe5 {[%clk 0:00:11]} 33. Qf2 {[%clk 0:00:09]}  Ne3 {[%clk 0:00:10]} 34. Rfe1 {[%clk 0:00:09]}  f4 {[%clk 0:00:11]} 35. Re2 {[%clk 0:00:08]}  Red8 {[%clk 0:00:10]} 36. g3 {[%clk 0:00:08]}  Rd1+ {[%clk 0:00:11]} 37. Rxd1 {[%clk 0:00:06]}  Rxd1+ {[%clk 0:00:12]} 38. Kh2 {[%clk 0:00:06]}  fxg3+ {[%clk 0:00:12]} 39. Qxg3 {[%clk 0:00:05]}  Nf1+ {[%clk 0:00:12]} 40. Kg2 {[%clk 0:00:04]}  Qxg3+ {[%clk 0:00:13]} 41. Kh1 {[%clk 0:00:00]}  Ne3+ {[%clk 0:00:13]} 0-1


[Site "https://www.chess.com"]

[Event "Titled Tuesday Blitz November 07 Early 2023"]
[White "Pumpkin_in_moonlight"]
[Black "Herman, Daniel"]
[BlackFideId "30935008"]
[WhiteElo "2311"]
[BlackElo "2410"]
[Result "0-1"]
[Round "11"]
[TimeControl "180+1"]
[Date "2023.11.07"]
[WhiteClock "0:00:06"]
[BlackClock "0:00:18"]
[Board "114"]

1. e4 {[%clk 0:03:00]}  e5 {[%clk 0:03:00]} 2. Nf3 {[%clk 0:03:00]}  Nc6 {[%clk 0:03:00]} 3. Bc4 {[%clk 0:02:57]}  Bc5 {[%clk 0:02:59]} 4. c3 {[%clk 0:02:52]}  Nf6 {[%clk 0:02:59]} 5. d4 {[%clk 0:02:51]}  exd4 {[%clk 0:02:58]} 6. cxd4 {[%clk 0:02:51]}  Bb4+ {[%clk 0:02:58]} 7. Nc3 {[%clk 0:02:48]}  Nxe4 {[%clk 0:02:47]} 8. O-O {[%clk 0:02:30]}  Bxc3 {[%clk 0:02:42]} 9. bxc3 {[%clk 0:02:29]}  d5 {[%clk 0:02:42]} 10. Bb5 {[%clk 0:02:25]}  O-O {[%clk 0:02:40]} 11. Bxc6 {[%clk 0:02:17]}  bxc6 {[%clk 0:02:40]} 12. Ne5 {[%clk 0:02:16]}  Qf6 {[%clk 0:02:31]} 13. Ba3 {[%clk 0:02:13]}  Re8 {[%clk 0:02:07]} 14. Qa4 {[%clk 0:02:11]}  Nxc3 {[%clk 0:01:59]} 15. Qc2 {[%clk 0:02:09]}  Nb5 {[%clk 0:01:55]} 16. Bc5 {[%clk 0:02:08]}  Bf5 {[%clk 0:01:43]} 17. Qd2 {[%clk 0:01:55]}  Nd6 {[%clk 0:01:39]} 18. f3 {[%clk 0:01:42]}  Nc4 {[%clk 0:01:36]} 19. Nxc4 {[%clk 0:01:36]}  dxc4 {[%clk 0:01:37]} 20. Qc3 {[%clk 0:01:30]}  Bd3 {[%clk 0:01:36]} 21. Rfe1 {[%clk 0:01:30]}  h5 {[%clk 0:01:35]} 22. Re5 {[%clk 0:01:18]}  Rxe5 {[%clk 0:01:31]} 23. dxe5 {[%clk 0:01:18]}  Qe6 {[%clk 0:01:22]} 24. Re1 {[%clk 0:01:15]}  Qd5 {[%clk 0:01:12]} 25. Bf2 {[%clk 0:01:11]}  a5 {[%clk 0:00:58]} 26. h3 {[%clk 0:01:10]}  Rd8 {[%clk 0:00:48]} 27. Kh1 {[%clk 0:01:04]}  Bf5 {[%clk 0:00:36]} 28. Bg3 {[%clk 0:00:54]}  Qb5 {[%clk 0:00:34]} 29. e6 {[%clk 0:00:49]}  Bxe6 {[%clk 0:00:27]} 30. Bxc7 {[%clk 0:00:45]}  Rd3 {[%clk 0:00:24]} 31. Qc2 {[%clk 0:00:24]}  c3 {[%clk 0:00:19]} 32. Re5 {[%clk 0:00:18]}  Qc4 {[%clk 0:00:18]} 33. Rxh5 {[%clk 0:00:14]}  g6 {[%clk 0:00:18]} 34. Rxa5 {[%clk 0:00:12]}  Rd2 {[%clk 0:00:18]} 35. Ra8+ {[%clk 0:00:11]}  Kg7 {[%clk 0:00:18]} 36. Be5+ {[%clk 0:00:10]}  f6 {[%clk 0:00:18]} 37. Ra7+ {[%clk 0:00:08]}  Bf7 {[%clk 0:00:18]} 38. Qxc3 {[%clk 0:00:07]}  Qf1+ {[%clk 0:00:17]} 39. Kh2 {[%clk 0:00:06]}  Qxg2# {[%clk 0:00:18]} 0-1


[Site "https://www.chess.com"]